fUSD/lending_fUSD_20250204
["ID","MTS","AMOUNT","RATE_DAILY","PERIOD"]
[351616644,1738666256115,-549.17,9.309e-05,2]
[351616645,1738666256126,-500.0,9.309e-05,2]
[351616646,1738666256138,-753.75,9.309e-05,2]
[351616647,1738666256148,-500.0,9.309e-05,2]
[351616648,1738666256160,-500.0,9.309e-05,2]
[351616649,1738666256174,-500.0,9.309e-05,2]
[351616650,1738666256189,-858.01,9.309e-05,2]
[351616651,1738666256202,-925.63,9.309e-05,2]
[351616652,1738666256214,-883.72,9.309e-05,2]
[351616653,1738666256225,-500.0,9.309e-05,2]
[351616654,1738666256237,-500.0,9.309e-05,2]
[351616655,1738666256250,-500.0,9.309e-05,2]
[351616656,1738666256263,-582.15,9.309e-05,2]
[351616657,1738666256275,-500.0,9.309e-05,2]
[351616658,1738666256287,-924.81,9.309e-05,2]
[351616659,1738666256299,-500.0,9.309e-05,2]
[351616660,1738666256311,-500.0,9.309e-05,2]
[351616661,1738666256323,-788.86,9.309e-05,2]
[351616662,1738666256335,-551.71,9.309e-05,2]
[351616663,1738666256346,-500.0,9.309e-05,2]
[351616664,1738666256359,-686.39,9.309e-05,2]
[351616665,1738666256371,-500.0,9.309e-05,2]
[351616666,1738666256385,-500.0,9.309e-05,2]
[351616667,1738666256398,-500.0,9.309e-05,2]
[351616668,1738666256411,-500.0,9.309e-05,2]
[351616669,1738666256424,-500.0,9.309e-05,2]
[351616670,1738666256436,-633.47,9.309e-05,2]
[351616671,1738666256448,-500.0,9.309e-05,2]
[351616672,1738666256462,-500.0,9.309e-05,2]
[351616673,1738666256474,-500.0,9.309e-05,2]
[351616674,1738666256486,-500.0,9.309e-05,2]
[351616675,1738666256497,-1036.97,9.309e-05,2]
[351616676,1738666256509,-500.0,9.309e-05,2]
[351616677,1738666256522,-811.88,9.309e-05,2]
[351616678,1738666256535,-1154.75,9.309e-05,2]
[351616679,1738666256547,-396.80200946,9.309e-05,2]
[351616680,1738666256559,-511.43,9.309e-05,2]
[351616681,1738666256571,-500.0,9.309e-05,2]
[351616682,1738666256584,-765.14,9.309e-05,2]
[351616683,1738666256597,-1291.54,9.309e-05,2]
[351616684,1738666256609,-1554.52,9.309e-05,2]
[351616685,1738666256620,-500.0,9.309e-05,2]
[351616686,1738666256632,-1036.67,9.309e-05,2]
[351616687,1738666256643,-500.0,9.309e-05,2]
[351616688,1738666256654,-500.0,9.309e-05,2]
[351616689,1738666256667,-500.0,9.309e-05,2]
[351616690,1738666256679,-1160.07,9.309e-05,2]
[351616691,1738666256691,-877.39,9.309e-05,2]
[351616692,1738666256704,-1140.04,9.309e-05,2]
[351616693,1738666256715,-1693.45,9.309e-05,2]
[351616694,1738666256726,-500.0,9.309e-05,2]
[351616695,1738666256738,-511.02,9.309e-05,2]
[351616696,1738666256751,-500.0,9.309e-05,2]
[351616697,1738666256763,-500.0,9.309e-05,2]
[351616698,1738666256775,-635.7,9.309e-05,2]
[351616699,1738666256787,-890.36,9.309e-05,2]
[351616700,1738666256799,-918.28,9.309e-05,2]
[351616701,1738666256810,-1021.01,9.309e-05,2]
[351616702,1738666256822,-500.0,9.309e-05,2]
[351616703,1738666256835,-500.0,9.309e-05,2]
[351616704,1738666256847,-887.28,9.309e-05,2]
[351616705,1738666256859,-694.48,9.309e-05,2]
[351616706,1738666256870,-883.46,9.309e-05,2]
[351616707,1738666256886,-500.0,9.309e-05,2]
[351616708,1738666256897,-500.0,9.309e-05,2]
[351616709,1738666256909,-944.67,9.309e-05,2]
[351616710,1738666256920,-500.0,9.309e-05,2]
[351616711,1738666256931,-1293.87,9.309e-05,2]
[351616712,1738666256943,-1539.06,9.309e-05,2]
[351616713,1738666256954,-1026.96,9.309e-05,2]
[351616714,1738666256966,-500.0,9.309e-05,2]
[351616715,1738666256977,-1448.18,9.309e-05,2]
[351616716,1738666256988,-1933.36,9.309e-05,2]
[351616717,1738666256999,-500.0,9.309e-05,2]
[351616718,1738666257010,-1108.43,9.309e-05,2]
[351616719,1738666257023,-500.0,9.309e-05,2]
[351616720,1738666257034,-1405.97,9.309e-05,2]
[351616721,1738666257045,-1014.38,9.309e-05,2]
[351616722,1738666257056,-500.0,9.309e-05,2]
[351616723,1738666257067,-1538.12,9.309e-05,2]
[351616724,1738666257079,-763.32,9.309e-05,2]
[351616725,1738666257091,-500.0,9.309e-05,2]
[351616726,1738666257105,-2844.58,9.309e-05,2]
[351616727,1738666257116,-762.83,9.309e-05,2]
[351616728,1738666257127,-681.6,9.309e-05,2]
[351616729,1738666257138,-500.0,9.309e-05,2]
[351616730,1738666257149,-753.58,9.309e-05,2]
[351616731,1738666257161,-1449.41,9.309e-05,2]
[351616732,1738666257174,-1972.38,9.309e-05,2]
[351616733,1738666257185,-2434.55,9.309e-05,2]
[351616734,1738666257196,-2349.51,9.309e-05,2]
[351616735,1738666257207,-1491.33,9.309e-05,2]
[351616736,1738666257219,-537.48,9.309e-05,2]
[351616737,1738666257231,-646.53,9.309e-05,2]
[351616738,1738666257243,-2183.22,9.309e-05,2]
[351616739,1738666257255,-349.50027009,9.309e-05,2]
[351616740,1738666257267,-2533.64,9.309e-05,2]
[351616741,1738666257279,-1141.92,9.309e-05,2]
[351616742,1738666257291,-931.86,9.309e-05,2]
[351616743,1738666257303,-507.7,9.309e-05,2]
[351616744,1738666257314,-2142.56,9.309e-05,2]
[351616745,1738666257326,-500.0,9.309e-05,2]
[351616746,1738666257337,-819.59,9.309e-05,2]
[351616747,1738666257348,-963.79,9.309e-05,2]
[351616748,1738666257359,-807.06,9.309e-05,2]
[351616749,1738666257371,-1496.82,9.309e-05,2]
[351616750,1738666257383,-1012.66,9.309e-05,2]
[351616751,1738666257394,-500.0,9.309e-05,2]
[351616752,1738666257406,-500.0,9.309e-05,2]
[351616753,1738666257417,-1580.21,9.309e-05,2]
[351616754,1738666257431,-500.0,9.309e-05,2]
[351616755,1738666257443,-1093.78,9.309e-05,2]
[351616756,1738666257454,-726.52,9.309e-05,2]
[351616757,1738666257466,-568.23,9.309e-05,2]
[351616758,1738666257477,-500.0,9.309e-05,2]
[351616759,1738666257488,-500.0,9.309e-05,2]
[351616760,1738666257499,-3113.89,9.309e-05,2]
[351616761,1738666257510,-2079.82,9.309e-05,2]
[351616762,1738666257522,-657.88,9.309e-05,2]
[351616763,1738666257533,-559.25,9.309e-05,2]
[351616764,1738666257545,-1366.26,9.309e-05,2]
[351616765,1738666257556,-545.71,9.309e-05,2]
[351616766,1738666257567,-1145.74,9.309e-05,2]
[351616767,1738666257578,-1661.25,9.309e-05,2]
[351616768,1738666257590,-500.0,9.309e-05,2]
[351616769,1738666257601,-500.0,9.309e-05,2]
[351616770,1738666257612,-500.0,9.309e-05,2]
[351616771,1738666257623,-500.0,9.309e-05,2]
[351616772,1738666257633,-1267.42,9.309e-05,2]
[351616773,1738666257644,-1596.56,9.309e-05,2]
[351616774,1738666257655,-1248.59,9.309e-05,2]
[351616775,1738666257666,-1570.67,9.309e-05,2]
[351616776,1738666257679,-500.0,9.309e-05,2]
[351616777,1738666257690,-500.0,9.309e-05,2]
[351616778,1738666257701,-1319.75,9.309e-05,2]
[351616779,1738666257712,-1179.66,9.309e-05,2]
[351616780,1738666257722,-2198.65,9.309e-05,2]
[351616781,1738666257733,-992.99,9.309e-05,2]
[351616782,1738666257743,-1625.3,9.309e-05,2]
[351616783,1738666257754,-1582.81,9.309e-05,2]
[351616784,1738666257765,-1213.52,9.309e-05,2]
[351616785,1738666257776,-500.0,9.309e-05,2]
[351616786,1738666257787,-500.0,9.309e-05,2]
[351616787,1738666257798,-1103.89,9.309e-05,2]
[351616788,1738666257809,-500.0,9.309e-05,2]
[351616789,1738666257820,-1286.49,9.309e-05,2]
[351616790,1738666257832,-660.98,9.309e-05,2]
[351616791,1738666257844,-923.7,9.309e-05,2]
[351616792,1738666257857,-500.0,9.309e-05,2]
[351616793,1738666257869,-905.0,9.309e-05,2]
[351616794,1738666257882,-559.28,9.309e-05,2]
[351616795,1738666257895,-1310.3,9.309e-05,2]
[351616796,1738666257906,-500.0,9.309e-05,2]
[351616797,1738666257919,-636.31,9.309e-05,2]
[351616798,1738666257931,-500.0,9.309e-05,2]
[351616799,1738666257943,-500.0,9.309e-05,2]
[351616800,1738666257956,-500.0,9.309e-05,2]
[351616801,1738666257968,-416.60061432,9.309e-05,2]
[351616802,1738666257979,-542.77,9.309e-05,2]
[351616803,1738666257991,-520.0,9.309e-05,2]
[351616804,1738666258003,-1706.28,9.309e-05,2]
[351616805,1738666258014,-1060.8,9.309e-05,2]
[351616806,1738666258026,-1066.92,9.309e-05,2]
[351616807,1738666258037,-500.0,9.309e-05,2]
[351616808,1738666258048,-1248.82,9.309e-05,2]
[351616809,1738666258059,-500.0,9.309e-05,2]
[351616810,1738666258071,-716.2,9.309e-05,2]
[351616811,1738666258082,-500.0,9.309e-05,2]
[351616812,1738666258096,-1020.63,9.309e-05,2]
[351616813,1738666258109,-778.52,9.309e-05,2]
[351616814,1738666258121,-1782.36,9.309e-05,2]
[351616815,1738666258133,-500.0,9.309e-05,2]
[351616816,1738666258144,-919.14,9.309e-05,2]
[351616817,1738666258155,-881.44,9.309e-05,2]
[351616818,1738666258165,-500.0,9.309e-05,2]
[351616819,1738666258178,-743.73,9.309e-05,2]
[351616820,1738666258188,-1474.07,9.309e-05,2]
[351616821,1738666258199,-500.0,9.309e-05,2]
[351616822,1738666258210,-500.0,9.31e-05,2]
[351616823,1738666258221,-500.0,9.31e-05,2]
[351616824,1738666258232,-500.0,9.31e-05,2]
[351616825,1738666258242,-500.0,9.31e-05,2]
[351616826,1738666258253,-500.0,9.31e-05,2]
[351616827,1738666258263,-500.0,9.31e-05,2]
[351616828,1738666258274,-500.0,9.31e-05,2]
[351616829,1738666258285,-573.49,9.31e-05,2]
[351616830,1738666258296,-826.86,9.31e-05,2]
[351616831,1738666258307,-500.0,9.31e-05,2]
[351616832,1738666258318,-500.0,9.31e-05,2]
[351616833,1738666258330,-500.0,9.31e-05,2]
[351616834,1738666258340,-500.0,9.31e-05,2]
[351616835,1738666258350,-500.0,9.31e-05,2]
[351616836,1738666258361,-500.0,9.31e-05,2]
[351616837,1738666258372,-500.0,9.31e-05,2]
[351616838,1738666258383,-500.0,9.31e-05,2]
[351616839,1738666258394,-500.0,9.31e-05,2]
[351616840,1738666258405,-500.0,9.31e-05,2]
[351616841,1738666258416,-500.0,9.31e-05,2]
[351616842,1738666258428,-582.91,9.31e-05,2]
[351616843,1738666258440,-906.73,9.31e-05,2]
[351616844,1738666258450,-500.0,9.31e-05,2]
[351616845,1738666258460,-500.0,9.31e-05,2]
[351616846,1738666258471,-566.69,9.31e-05,2]
[351616847,1738666258482,-500.0,9.31e-05,2]
[351616848,1738666258493,-520.23,9.31e-05,2]
[351616849,1738666258504,-627.36,9.31e-05,2]
[351616850,1738666258515,-500.0,9.31e-05,2]
[351616851,1738666258526,-500.0,9.31e-05,2]
[351616852,1738666258538,-521.41,9.31e-05,2]
[351616853,1738666258549,-500.0,9.31e-05,2]
[351616854,1738666258559,-536.62,9.31e-05,2]
[351616855,1738666258570,-500.0,9.31e-05,2]
[351616856,1738666258580,-500.0,9.31e-05,2]
[351616857,1738666258591,-500.0,9.31e-05,2]
[351616858,1738666258602,-593.34,9.31e-05,2]
[351616859,1738666258613,-500.0,9.31e-05,2]
[351616860,1738666258624,-610.14824895,9.31e-05,2]
[351616861,1738666258635,-500.0,9.31e-05,2]
[351616862,1738666258646,-763.48,9.31e-05,2]
[351616863,1738666258657,-500.0,9.31e-05,2]
[351616864,1738666258668,-500.0,9.31e-05,2]
[351616865,1738666258681,-762.35,9.31e-05,2]
[351616866,1738666258691,-500.0,9.31e-05,2]
[351616867,1738666258702,-500.0,9.31e-05,2]
[351616868,1738666258712,-532.38,9.31e-05,2]
[351616869,1738666258723,-500.0,9.31e-05,2]
[351616870,1738666258734,-684.17,9.31e-05,2]
[351616871,1738666258745,-336.03677356,9.31e-05,2]
[351616872,1738666258756,-510.91,9.31e-05,2]
[351616873,1738666258767,-665.46,9.31e-05,2]
[351616874,1738666258778,-516.45,9.31e-05,2]
[351616875,1738666258788,-500.0,9.31e-05,2]
[351616876,1738666258799,-500.0,9.31e-05,2]
[351616877,1738666258810,-529.84,9.31e-05,2]
[351616878,1738666258821,-602.27,9.31e-05,2]
[351616879,1738666258831,-500.0,9.31e-05,2]
[351616880,1738666258842,-886.01,9.31e-05,2]
[351616881,1738666258853,-852.86,9.31e-05,2]
[351616882,1738666258864,-629.17,9.31e-05,2]
[351616883,1738666258874,-500.0,9.31e-05,2]
[351616884,1738666258885,-500.0,9.31e-05,2]
[351616885,1738666258896,-500.0,9.31e-05,2]
[351616886,1738666258906,-1183.56,9.31e-05,2]
[351616887,1738666258917,-500.0,9.31e-05,2]
[351616888,1738666258929,-648.55,9.31e-05,2]
[351616889,1738666258940,-500.0,9.31e-05,2]
[351616890,1738666258951,-719.44,9.31e-05,2]
[351616891,1738666258963,-500.0,9.31e-05,2]
[351616892,1738666258974,-500.0,9.31e-05,2]
[351616893,1738666258984,-987.7,9.31e-05,2]
[351616894,1738666258994,-738.7,9.31e-05,2]
[351616895,1738666259006,-730.04,9.31e-05,2]
[351616896,1738666259017,-1012.94,9.31e-05,2]
[351616897,1738666259027,-500.0,9.31e-05,2]
[351616898,1738666259039,-500.0,9.31e-05,2]
[351616899,1738666259050,-500.0,9.31e-05,2]
[351616900,1738666259060,-1018.61,9.31e-05,2]
[351616901,1738666259072,-631.63,9.31e-05,2]
[351616902,1738666259084,-803.76,9.31e-05,2]
[351616903,1738666259099,-500.0,9.31e-05,2]
[351616904,1738666259109,-693.01,9.31e-05,2]
[351616905,1738666259120,-673.09,9.31e-05,2]
[351616906,1738666259131,-500.0,9.31e-05,2]
[351616907,1738666259141,-844.23,9.31e-05,2]
[351616908,1738666259152,-953.01,9.31e-05,2]
[351616909,1738666259163,-500.0,9.31e-05,2]
[351616910,1738666259176,-500.0,9.31e-05,2]
[351616911,1738666259187,-533.38,9.31e-05,2]
[351616912,1738666259198,-500.0,9.31e-05,2]
[351616913,1738666259657,-500.0,9.31e-05,2]
[351616914,1738666259678,-659.28,9.31e-05,2]
[351616915,1738666259689,-578.55,9.31e-05,2]
[351616916,1738666259700,-511.51,9.31e-05,2]
[351616917,1738666259709,-500.0,9.31e-05,2]
[351616918,1738666259719,-611.5,9.31e-05,2]
[351616919,1738666259729,-500.0,9.31e-05,2]
[351616920,1738666259740,-713.86,9.31e-05,2]
[351616921,1738666259752,-611.93,9.31e-05,2]
[351616922,1738666259761,-1116.38,9.31e-05,2]
[351616923,1738666259771,-639.02,9.31e-05,2]
[351616924,1738666259780,-300.60726582,9.31e-05,2]
[351616925,1738666259789,-797.65,9.31e-05,2]
[351616926,1738666259799,-819.52,9.31e-05,2]
[351616927,1738666259808,-500.0,9.31e-05,2]
[351616928,1738666259817,-500.0,9.31e-05,2]
[351616929,1738666259827,-683.87,9.31e-05,2]
[351616930,1738666259836,-620.55,9.31e-05,2]
[351616931,1738666259846,-500.0,9.31e-05,2]
[351616932,1738666259855,-503.52,9.31e-05,2]
[351616933,1738666259865,-500.0,9.31e-05,2]
[351616934,1738666259874,-500.0,9.31e-05,2]
[351616935,1738666259884,-893.34,9.31e-05,2]
[351616936,1738666259893,-500.0,9.31e-05,2]
[351616937,1738666259903,-500.0,9.31e-05,2]
[351616938,1738666259913,-500.0,9.31e-05,2]
[351616939,1738666259923,-500.0,9.31e-05,2]
[351616940,1738666259932,-735.16,9.31e-05,2]
[351616941,1738666259941,-500.0,9.31e-05,2]
[351616942,1738666259953,-500.0,9.31e-05,2]
[351616943,1738666259963,-646.5,9.31e-05,2]
[351616944,1738666259973,-500.0,9.31e-05,2]
[351616945,1738666259983,-475.22943646,9.31e-05,2]
[351616946,1738666259992,-997.44,9.31e-05,2]
[351616947,1738666260002,-500.0,9.31e-05,2]
[351616948,1738666260012,-500.0,9.31e-05,2]
[351616949,1738666260021,-500.0,9.31e-05,2]
[351616950,1738666260030,-500.0,9.31e-05,2]
[351616951,1738666260040,-500.0,9.31e-05,2]
[351616952,1738666260051,-500.0,9.31e-05,2]
[351616953,1738666260061,-632.22,9.31e-05,2]
[351616954,1738666260071,-616.82,9.31e-05,2]
[351616955,1738666260081,-500.0,9.31e-05,2]
[351616956,1738666260091,-500.0,9.31e-05,2]
[351616957,1738666260105,-500.0,9.31e-05,2]
[351616958,1738666260114,-603.998353,9.31e-05,2]
[351616959,1738666260124,-500.0,9.31e-05,2]
[351616960,1738666260133,-648.81,9.31e-05,2]
[351616961,1738666260143,-500.0,9.31e-05,2]
[351616962,1738666260152,-500.0,9.31e-05,2]
[351616963,1738666260162,-915.19,9.31e-05,2]
[351616964,1738666260171,-2371.2,9.31e-05,2]
[351616965,1738666260181,-838.62,9.31e-05,2]
[351616966,1738666260191,-500.0,9.31e-05,2]
[351616967,1738666260201,-1587.07,9.31e-05,2]
[351616968,1738666260211,-500.0,9.31e-05,2]
[351616969,1738666260220,-1816.92,9.31e-05,2]
[351616970,1738666260230,-500.0,9.31e-05,2]
[351616971,1738666260240,-513.70884213,9.31e-05,2]
[351616972,1738666260249,-500.0,9.31e-05,2]
[351616973,1738666260260,-198.35314677,9.31e-05,2]
[351616974,1738666260269,-715.31,9.31e-05,2]
[351616975,1738666260279,-1488.57,9.31e-05,2]
[351616976,1738666260289,-500.0,9.31e-05,2]
[351616977,1738666260299,-2550.15,9.31e-05,2]
[351616978,1738666260310,-530.01,9.31e-05,2]
[351616979,1738666260320,-500.0,9.31e-05,2]
[351616980,1738666260330,-500.0,9.31e-05,2]
[351616981,1738666260340,-500.0,9.31e-05,2]
[351616982,1738666260350,-500.0,9.31e-05,2]
[351616983,1738666260360,-1658.68,9.31e-05,2]
[351616984,1738666260370,-1030.96,9.31e-05,2]
[351616985,1738666260380,-578.27,9.31e-05,2]
[351616986,1738666260389,-500.0,9.31e-05,2]
[351616987,1738666260399,-517.33,9.31e-05,2]
[351616988,1738666260409,-500.0,9.31e-05,2]
[351616989,1738666260420,-500.0,9.31e-05,2]
[351616990,1738666260431,-1386.93,9.31e-05,2]
[351616991,1738666260440,-975.74,9.31e-05,2]
[351616992,1738666260450,-740.72,9.31e-05,2]
[351616993,1738666260460,-500.0,9.31e-05,2]
[351616994,1738666260470,-1222.2,9.31e-05,2]
[351616995,1738666260480,-500.0,9.31e-05,2]
[351616996,1738666260490,-500.0,9.31e-05,2]
[351616997,1738666260500,-1336.79,9.31e-05,2]
[351616998,1738666260509,-500.0,9.31e-05,2]
[351616999,1738666260520,-526.32,9.31e-05,2]
[351617000,1738666260530,-516.01,9.31e-05,2]
[351617001,1738666260539,-1365.03,9.31e-05,2]
[351617002,1738666260549,-1087.43,9.31e-05,2]
[351617003,1738666260559,-500.0,9.31e-05,2]
[351617004,1738666260569,-1560.86,9.31e-05,2]
[351617005,1738666260578,-635.5,9.31e-05,2]
[351617006,1738666260588,-500.0,9.31e-05,2]
[351617007,1738666260598,-1471.54,9.31e-05,2]
[351617008,1738666260608,-500.0,9.31e-05,2]
[351617009,1738666260617,-500.0,9.31e-05,2]
[351617010,1738666260626,-1627.62,9.31e-05,2]
[351617011,1738666260635,-589.4,9.31e-05,2]
[351617012,1738666260645,-500.0,9.31e-05,2]
[351617013,1738666260654,-500.0,9.31e-05,2]
[351617014,1738666260663,-500.0,9.31e-05,2]
[351617015,1738666260673,-500.0,9.31e-05,2]
[351617016,1738666260682,-500.0,9.31e-05,2]
[351617017,1738666260692,-1341.25,9.31e-05,2]
[351617018,1738666260701,-500.0,9.31e-05,2]
[351617019,1738666260710,-611.74,9.31e-05,2]
[351617020,1738666260719,-1635.21,9.31e-05,2]
[351617021,1738666260729,-1060.11,9.31e-05,2]
[351617022,1738666260739,-500.0,9.31e-05,2]
[351617023,1738666260748,-761.58,9.31e-05,2]
[351617024,1738666260759,-500.0,9.31e-05,2]
[351617025,1738666260769,-563.5,9.31e-05,2]
[351617026,1738666260778,-500.0,9.31e-05,2]
[351617027,1738666260788,-500.0,9.31e-05,2]
[351617028,1738666260797,-500.0,9.31e-05,2]
[351617029,1738666260806,-500.0,9.31e-05,2]
[351617030,1738666260815,-665.51,9.31e-05,2]
[351617031,1738666260825,-547.43,9.31e-05,2]
[351617032,1738666260834,-500.0,9.31e-05,2]
[351617033,1738666260843,-500.0,9.313e-05,2]
[351617034,1738666260852,-500.0,9.313e-05,2]
[351617035,1738666260861,-500.0,9.313e-05,2]
[351617036,1738666260871,-168.806,9.314e-05,2]
[351617037,1738666260880,-139966.91850325,9.37e-05,2]
[351617038,1738666260889,-205.0,9.39e-05,2]
[351617039,1738666260899,-1059.0,9.424e-05,2]
[351617040,1738666260908,-762.35,9.446e-05,2]
[351617041,1738666260918,-778.66,9.446e-05,2]
[351617042,1738666260927,-501.61,9.446e-05,2]
[351617043,1738666260936,-557.72743955,9.446e-05,2]
[351617044,1738666260947,-500.0,9.446e-05,2]
[351617045,1738666260957,-500.0,9.446e-05,2]
[351617046,1738666260966,-783.26,9.446e-05,2]
[351617047,1738666260977,-777.35,9.446e-05,2]
[351617048,1738666260987,-776.52,9.446e-05,2]
[351617049,1738666260996,-782.02,9.446e-05,2]
[351617050,1738666261005,-500.0,9.446e-05,2]
[351617051,1738666261015,-539.22,9.446e-05,2]
[351617052,1738666261026,-532.69,9.446e-05,2]
[351617053,1738666261037,-500.0,9.446e-05,2]
[351617054,1738666261047,-710.15,9.446e-05,2]
[351617055,1738666261057,-607.89,9.446e-05,2]
[351617056,1738666261067,-500.0,9.446e-05,2]
[351617057,1738666261076,-595.82,9.446e-05,2]
[351617058,1738666261086,-500.0,9.446e-05,2]
[351617059,1738666261097,-500.0,9.446e-05,2]
[351617060,1738666261107,-518.82,9.446e-05,2]
[351617061,1738666261116,-302.36683993,9.446e-05,2]
[351617062,1738666261125,-500.0,9.446e-05,2]
[351617063,1738666261136,-744.95,9.446e-05,2]
[351617064,1738666261146,-500.0,9.446e-05,2]
[351617065,1738666261155,-500.0,9.446e-05,2]
[351617066,1738666261164,-856.37136,9.446e-05,2]
[351617067,1738666261176,-500.0,9.446e-05,2]
[351617068,1738666261186,-500.0,9.446e-05,2]
[351617069,1738666261195,-691.63,9.446e-05,2]
[351617070,1738666261205,-500.0,9.446e-05,2]
[351617071,1738666261214,-500.0,9.446e-05,2]
[351617072,1738666261224,-500.0,9.446e-05,2]
[351617073,1738666261235,-559.9,9.446e-05,2]
[351617074,1738666261245,-500.0,9.446e-05,2]
[351617075,1738666261254,-875.590645,9.446e-05,2]
[351617076,1738666261264,-500.0,9.446e-05,2]
[351617077,1738666261274,-516.13,9.446e-05,2]
[351617078,1738666261283,-500.0,9.446e-05,2]
[351617079,1738666261293,-663.56,9.446e-05,2]
[351617080,1738666261302,-541.64,9.446e-05,2]
[351617081,1738666261311,-500.0,9.446e-05,2]
[351617082,1738666261321,-500.0,9.446e-05,2]
[351617083,1738666261331,-859.42,9.446e-05,2]
[351617084,1738666261341,-549.17,9.446e-05,2]
[351617085,1738666261350,-500.0,9.446e-05,2]
[351617086,1738666261359,-753.75,9.446e-05,2]
[351617087,1738666261370,-500.0,9.446e-05,2]
[351617088,1738666261381,-500.0,9.446e-05,2]
[351617089,1738666261390,-500.0,9.446e-05,2]
[351617090,1738666261399,-858.01,9.446e-05,2]
[351617091,1738666261410,-925.63,9.446e-05,2]
[351617092,1738666261420,-883.72,9.446e-05,2]
[351617093,1738666261432,-500.0,9.446e-05,2]
[351617094,1738666261441,-500.0,9.446e-05,2]
[351617095,1738666261450,-500.0,9.446e-05,2]
[351617096,1738666261460,-582.15,9.446e-05,2]
[351617097,1738666261469,-500.0,9.446e-05,2]
[351617098,1738666261479,-924.81,9.446e-05,2]
[351617099,1738666261489,-500.0,9.446e-05,2]
[351617100,1738666261499,-500.0,9.446e-05,2]
[351617101,1738666261509,-788.86,9.446e-05,2]
[351617102,1738666261519,-551.71,9.446e-05,2]
[351617103,1738666261528,-500.0,9.446e-05,2]
[351617104,1738666261538,-686.39,9.446e-05,2]
[351617105,1738666261547,-500.0,9.446e-05,2]
[351617106,1738666261556,-500.0,9.446e-05,2]
[351617107,1738666261566,-500.0,9.446e-05,2]
[351617108,1738666261583,-500.0,9.446e-05,2]
[351617109,1738666261594,-500.0,9.446e-05,2]
[351617110,1738666261604,-633.47,9.446e-05,2]
[351617111,1738666261613,-500.0,9.446e-05,2]
[351617112,1738666261623,-399.63199915,9.446e-05,2]
[351617113,1738666261633,-500.0,9.446e-05,2]
[351617114,1738666261642,-500.0,9.446e-05,2]
[351617115,1738666261653,-1036.97,9.446e-05,2]
[351617116,1738666261663,-500.0,9.446e-05,2]
[351617117,1738666261673,-811.88,9.446e-05,2]
[351617118,1738666261684,-1154.75,9.446e-05,2]
[351617119,1738666261694,-511.43,9.446e-05,2]
[351617120,1738666261704,-500.0,9.446e-05,2]
[351617121,1738666261713,-765.14,9.446e-05,2]
[351617122,1738666261723,-1291.54,9.446e-05,2]
[351617123,1738666261732,-1554.52,9.446e-05,2]
[351617124,1738666261741,-500.0,9.446e-05,2]
[351617125,1738666261751,-1036.67,9.446e-05,2]
[351617126,1738666261762,-500.0,9.446e-05,2]
[351617127,1738666261771,-500.0,9.446e-05,2]
[351617128,1738666261780,-1160.07,9.446e-05,2]
[351617129,1738666261790,-877.39,9.446e-05,2]
[351617130,1738666261799,-1140.04,9.446e-05,2]
[351617131,1738666261808,-1693.45,9.446e-05,2]
[351617132,1738666261817,-500.0,9.446e-05,2]
[351617133,1738666261827,-511.02,9.446e-05,2]
[351617134,1738666261836,-500.0,9.446e-05,2]
[351617135,1738666261846,-500.0,9.446e-05,2]
[351617136,1738666261856,-635.7,9.446e-05,2]
[351617137,1738666261865,-890.36,9.446e-05,2]
[351617138,1738666261874,-918.28,9.446e-05,2]
[351617139,1738666261884,-1021.01,9.446e-05,2]
[351617140,1738666261893,-500.0,9.446e-05,2]
[351617141,1738666261903,-500.0,9.446e-05,2]
[351617142,1738666261913,-887.28,9.446e-05,2]
[351617143,1738666261922,-883.46,9.446e-05,2]